bitfinex-derivatives/quotes_SOLF0:USTF0_20240823
["timestamp","ask_amount","ask_price","bid_price","bid_amount"]
[1724436506982,0.04676971,147.98,147.97,3.3787]
[1724436507177,0.04676971,147.98,147.96,46.78]
[1724436508173,500.0,148.0,147.96,46.78]
[1724436508487,500.0,148.0,147.99,46.78]
[1724436508873,500.0,148.0,147.99,50.1582]
[1724436509674,495.7545,148.0,147.99,50.1582]
[1724436509877,491.509,148.0,147.99,50.1582]
[1724436510086,491.509,148.0,147.99,3.3782]
[1724436510473,491.509,148.0,147.99,50.1582]
[1724436510679,487.427,148.0,147.99,50.1582]
[1724436511382,254.15495843,148.0,147.99,53.54884664]
[1724436511581,254.15495843,148.0,147.99,100.32884664]
[1724436511780,107.68825843,148.0,147.99,96.9382]
[1724436511983,92.81835843,148.0,147.99,96.9382]
[1724436512282,66.79585843,148.0,147.99,96.9382]
[1724436512677,66.79585843,148.0,147.99,100.30621756]
[1724436512877,0.91375843,148.0,147.99,100.30621756]
[1724436513191,5.843e-05,148.0,147.99,100.30621756]
[1724436514379,0.05001696,148.01,148.0,3.378]
[1724436514578,5.5044,148.16,147.99,96.92801756]
[1724436514786,5.5044,148.16,148.09,46.78]
[1724436515588,0.05077997,148.14,148.11,0.0443012]
[1724436516479,0.05077997,148.14,148.09,46.78]
[1724436517691,3.3755,148.11,148.1,0.04393946]
[1724436517890,0.04442503,148.12,148.09,0.05166295]
[1724436518086,0.04442503,148.12,147.89,6.7609]
[1724436518285,46.78,148.13,147.99,46.78]
[1724436518789,5.5044,148.16,147.99,46.78]
[1724436518790,46.78,148.11,147.99,50.158]
[1724436518983,0.04333982,148.06,148.04,0.0447923]
[1724436519184,3.43945614,148.08,148.04,0.0447923]
[1724436519389,0.04374823,148.06,147.97,46.78]
[1724436519590,0.04374823,148.06,147.91,0.0888]
[1724436519791,46.78,148.06,147.94,46.78]
[1724436519989,5.2777,148.07,147.96,46.78]
[1724436520190,5.2777,148.07,147.91,0.0888]
[1724436520191,5.2777,148.07,147.99,46.78]
[1724436520488,3.42748085,148.04,148.02,0.05105502]
[1724436520684,0.05038085,148.04,148.02,0.05105502]
[1724436524199,0.05038085,148.04,148.03,46.78]
[1724436524391,0.05038085,148.04,148.03,50.1573]
[1724436524899,0.05038085,148.04,148.03,46.78]
[1724436525496,0.05038085,148.04,148.03,50.1573]
[1724436526103,5.5148,148.14,148.04,3.377]
[1724436526290,5.5148,148.14,148.06,46.78]
[1724436527104,0.04390243,148.11,148.09,0.04497824]
[1724436527500,0.04390243,148.11,147.93,3.32940155]
[1724436527699,46.78,148.1,147.97,46.78]
[1724436528009,46.78,148.08,147.97,46.78]
[1724436528207,2.7267,148.07,147.97,46.78]
[1724436528507,2.7267,148.07,148.01,0.04684017]
[1724436528508,0.05161671,148.03,148.01,0.04684017]
[1724436529208,0.05161671,148.03,148.02,3.3775]
[1724436529706,0.05161671,148.03,148.01,38.94684017]
[1724436530207,0.05161671,148.03,148.02,3.3775]
[1724436530406,0.05161671,148.03,148.01,38.94684017]
[1724436530903,0.05161671,148.03,148.01,42.32434017]
[1724436531304,0.05161671,148.03,148.01,38.94684017]
[1724436531500,0.05161671,148.03,148.02,3.3775]
[1724436531812,2.6514,148.11,148.01,38.94684017]
[1724436532008,2.6514,148.11,148.06,38.9]
[1724436532203,3.3758,148.1,148.06,38.9]
[1724436532805,0.04905209,148.09,148.07,0.04313594]
[1724436533109,2.6504,148.15,148.07,0.04313594]
[1724436533110,2.6504,148.15,148.08,38.9]
[1724436533403,2.6504,148.15,148.02,3.39547071]
[1724436533404,2.6504,148.15,148.1,38.9]
[1724436533610,2.6504,148.15,148.08,38.9]
[1724436534011,2.6504,148.15,148.0,38.9]
[1724436534012,3.3755,148.11,148.1,0.05023336]
[1724436534203,0.04569578,148.12,148.09,0.04404145]
[1724436534604,0.04569578,148.12,148.1,38.9]
[1724436535706,65.92,148.23,148.1,38.9]
[1724436535907,5.1585,148.2,148.14,38.9]
[1724436536715,5.1585,148.2,148.16,0.04576382]
[1724436536716,0.04631865,148.18,148.16,0.04576382]
[1724436537012,2.7361,148.22,148.17,38.9]
[1724436537606,2.5523,148.25,148.17,38.9]
[1724436537818,5.2549,148.25,148.0,2.98436537]
[1724436538017,0.04704898,148.15,148.14,38.9]
[1724436538317,38.9,148.24,148.14,38.9]
[1724436538318,0.05028228,148.16,148.14,38.9]
[1724436538615,0.04600249,148.16,148.14,38.95043819]
[1724436539119,0.04600249,148.16,148.14,42.32503819]
[1724436539416,0.04600249,148.16,148.14,38.95043819]
[1724436539619,3.32726508,148.23,148.14,38.95043819]
[1724436539915,5.2549,148.25,148.17,38.9]
[1724436540618,3.42145606,148.22,148.2,0.04318673]
[1724436540816,0.04835606,148.22,148.2,0.04318673]
[1724436541209,3.3732,148.21,148.2,0.04318673]
[1724436542115,0.04835606,148.22,148.14,38.9]
[1724436542116,3.3739,148.18,148.14,38.9]
[1724436542314,3.3253572,148.24,148.14,42.2748]
[1724436542510,5.2549,148.25,148.14,38.9]
[1724436542710,5.2549,148.25,148.18,38.9]
[1724436543114,0.04651442,148.23,148.2,0.04339957]
[1724436544014,0.04651442,148.23,148.2,38.94339957]
[1724436544418,0.04651442,148.23,148.22,38.9]
[1724436546617,0.04651442,148.23,148.2,38.94339957]
[1724436547216,3.373,148.22,148.2,0.04339957]
[1724436547416,0.04651442,148.23,148.2,0.04339957]
[1724436547617,0.04651442,148.23,148.16,38.9]
[1724436547817,38.94651442,148.23,148.11,38.9]
[1724436548018,5.2626,148.22,148.11,38.9]
[1724436548319,3.3741,148.18,148.11,38.9]
[1724436548525,5.2626,148.22,148.11,38.9]
[1724436548722,0.05182852,148.18,148.15,0.04959339]
[1724436549113,0.05182852,148.18,148.09,38.9]
[1724436549317,38.9,148.19,148.07,42.2763]
[1724436549617,38.9,148.16,148.01,0.2611]
[1724436549820,3.3755,148.11,148.04,42.277]
[1724436550119,38.9,148.14,147.92,38.9]
[1724436550120,38.9,148.12,148.06,0.04560358]
[1724436550421,3.33839647,148.14,148.08,0.04454026]
[1724436550422,3.3759,148.09,148.08,0.04454026]
[1724436550619,49.3225,148.1,147.97,46.65]
[1724436550924,46.65,148.08,147.95,46.9111]
[1724436551125,50.04399925,148.08,147.95,50.2902]
[1724436551314,50.04399925,148.08,147.95,50.0291]
[1724436551824,0.05103055,148.03,148.0,0.04900417]
[1724436555222,3.3775,148.02,147.91,46.65]
[1724436555426,2.6731,148.01,147.91,46.65]
[1724436555726,6.051,148.01,147.91,46.65]
[1724436555923,2.7152,148.0,147.91,46.65]
[1724436556114,2.7152,148.0,147.94,3.3793]
[1724436556318,0.04715681,147.97,147.94,3.42803284]
[1724436557126,0.04715681,147.97,147.94,0.04873284]
[1724436560425,46.65,147.97,147.86,46.65]
[1724436560932,46.65,147.97,147.84,46.65]
[1724436561435,0.04524113,147.92,147.89,0.04825274]
[1724436562319,0.04524113,147.92,147.9,3.3802]
[1724436562722,0.04524113,147.92,147.89,46.69825274]
[1724436562925,0.04524113,147.92,147.89,0.04825274]
[1724436563530,3.3803,147.9,147.89,0.04825274]
[1724436564430,5.526,147.91,147.89,0.04825274]
[1724436565026,46.65,147.9,147.63,9.75686537]
[1724436565232,46.65,147.9,147.76,46.65]
[1724436565426,46.65,147.9,147.7,46.65]
[1724436565427,3.3807,147.89,147.79,46.65]
[1724436565732,46.65,147.9,147.79,46.65]
[1724436566028,46.65,147.9,147.79,50.0326]
[1724436566233,0.0468574,147.86,147.83,0.04487102]
[1724436566628,0.0468574,147.86,147.83,46.69487102]
[1724436567130,0.0468574,147.86,147.83,0.04487102]
[1724436567930,0.0468574,147.86,147.83,3.42667102]
[1724436568526,0.0468574,147.86,147.83,46.69487102]
[1724436568935,0.0468574,147.86,147.85,3.3814]
[1724436569630,0.0468574,147.86,147.83,50.07657102]
[1724436569832,0.0468574,147.86,147.83,46.69487102]
[1724436570226,0.0468574,147.86,147.85,3.3814]
[1724436570429,49.3388,147.99,147.85,46.65]
[1724436570624,5.403,147.98,147.88,46.65]
[1724436571337,0.04747039,147.94,147.92,0.05191157]
[1724436572430,3.42677039,147.94,147.92,0.05191157]
[1724436573436,3.3796,147.93,147.92,0.05191157]
[1724436573637,5.403,147.98,147.85,46.65]
[1724436573833,46.65,147.97,147.85,46.65]
[1724436574237,3.3797,147.93,147.85,46.65]
[1724436574434,46.65,147.97,147.85,46.65]
[1724436574641,3.3791,147.95,147.85,46.65]
[1724436574836,0.04389071,147.92,147.9,3.41991685]
[1724436575139,0.04812597,147.92,147.9,0.03981685]
[1724436575336,0.04812597,147.92,147.91,3.38]
[1724436575933,5.403,147.98,147.94,3.3793]
[1724436576134,5.403,147.98,147.93,46.65]
[1724436576339,8.7815,147.98,147.93,46.65]
[1724436576536,5.403,147.98,147.93,46.65]
[1724436576837,5.403,147.98,147.9,46.65]
[1724436577042,0.05117416,147.95,147.93,0.04611063]
[1724436578538,3.3793,147.94,147.93,0.04611063]
[1724436578940,0.05117416,147.95,147.88,46.65]
[1724436579939,0.05117416,147.95,147.9,0.04183218]
[1724436580334,3.43027416,147.95,147.9,3.42203218]
[1724436580744,3.43027416,147.95,147.9,0.04183218]
[1724436580941,3.3796,147.93,147.9,0.04183218]
[1724436581137,0.05117416,147.95,147.9,0.04183218]
[1724436581541,3.3797,147.93,147.9,0.04183218]
[1724436581949,0.05117416,147.95,147.9,0.04183218]
[1724436582142,3.3795,147.94,147.9,3.42203218]
[1724436582343,0.05117416,147.95,147.9,46.69183218]
[1724436583047,0.05117416,147.95,147.93,46.65]
[1724436583245,0.05117416,147.95,147.94,3.3793]
[1724436583445,2.62,148.03,147.93,46.65]
[1724436583743,2.62,148.03,147.96,3.3787]
[1724436584144,3.3779,148.01,147.96,3.3787]
[1724436584344,5.2775,148.05,147.98,46.65]
[1724436584648,0.04979824,148.03,148.0,0.05058105]
[1724436584951,0.04979824,148.03,148.0,46.70058105]
[1724436585543,46.65,148.13,148.0,46.70058105]
[1724436585748,3.40261819,148.12,148.0,46.65]
[1724436586147,3.40261819,148.12,148.02,46.65]
[1724436586353,55.0428,148.15,148.02,46.65]
[1724436586541,55.0428,148.15,148.03,3.3773]
[1724436586852,0.04919198,148.1,148.07,0.04894333]
[1724436587446,3.3759,148.09,148.07,0.04894333]
[1724436588346,3.3761,148.08,148.07,0.04894333]
[1724436592551,3.3764,148.07,148.02,46.65]
[1724436593049,3.3767,148.06,148.02,46.65]
[1724436593251,3.3767,148.06,148.0,50.0279]
[1724436593451,3.3767,148.06,147.97,0.3064]
[1724436593452,0.04359804,148.04,148.02,0.04967698]
[1724436593652,0.05192274,148.04,148.02,0.04882427]
[1724436595249,3.42902274,148.04,148.02,0.04882427]
[1724436596054,3.3773,148.03,148.02,0.04882427]
[1724436596453,3.3779,148.01,147.95,46.65]
[1724436596749,0.05192274,148.04,147.95,46.65]
[1724436596750,2.6509,148.05,147.95,46.65]
[1724436597253,2.6509,148.05,147.97,46.65]
[1724436597445,3.3775,148.02,147.97,50.0286]
[1724436597650,3.3775,148.02,147.97,46.65]
[1724436597953,3.42872865,148.02,148.0,0.04503699]
[1724436599460,3.3777,148.01,148.0,0.04503699]
[1724436601553,0.05122865,148.02,148.0,0.04503699]
[1724436601750,0.05122865,148.02,148.01,3.3777]
[1724436602057,0.00249581,148.02,148.01,3.3777]
[1724436602461,5.4465,148.12,148.03,3.3772]
[1724436602662,3.3762,148.08,148.03,50.0272]
[1724436603055,5.4465,148.12,148.03,46.65]
[1724436603456,52.0965,148.12,147.98,46.65]
[1724436603761,3.3764,148.07,148.06,0.04850891]
[1724436604060,3.3764,148.07,148.0,46.65]
[1724436604550,0.05188772,148.05,148.03,50.0273]
[1724436604756,3.3762,148.08,148.03,50.0273]
[1724436604966,0.0501246,148.05,148.03,50.07399125]
[1724436605656,0.0501246,148.05,148.04,3.3771]
[1724436605857,0.0501246,148.05,148.03,46.69669125]
[1724436606650,2.7335,148.12,148.03,46.69669125]
[1724436606855,2.7335,148.12,148.08,46.65]
[1724436606856,3.3755,148.11,148.08,46.65]
[1724436607052,2.7335,148.12,148.08,46.65]
[1724436607558,2.7335,148.12,148.03,3.32377445]
[1724436607559,3.3757,148.1,148.05,50.0268]
[1724436607757,0.0461879,148.09,148.06,0.0491497]
[1724436607954,3.3762,148.08,148.06,0.0491497]
[1724436608560,3.4221879,148.09,148.06,0.0491497]
[1724436608758,0.0461879,148.09,148.07,46.65]
[1724436609158,0.0461879,148.09,148.08,3.3761]
[1724436609559,2.8208,148.15,148.07,93.3]
[1724436609765,3.3748,148.14,148.11,46.65]
[1724436609962,2.8208,148.15,148.11,46.65]
[1724436610367,6.1955,148.15,148.11,46.65]
[1724436610567,2.8208,148.15,148.11,46.65]
[1724436610762,0.04747409,148.14,148.12,0.05123339]
[1724436610964,3.42247409,148.14,148.12,0.05123339]
[1724436611364,0.04747409,148.14,148.12,0.05123339]
[1724436612171,3.42227409,148.14,148.12,0.05123339]
[1724436612364,0.04747409,148.14,148.12,3.42643339]
[1724436612770,0.04747409,148.14,148.12,0.05123339]
[1724436613268,0.04747409,148.14,148.13,46.65]
[1724436613477,27.0,148.22,148.13,46.65]
[1724436613768,3.3732,148.21,148.16,46.65]
[1724436614169,8.1698,148.23,148.16,46.65]
[1724436614473,46.65,148.3,148.18,0.0433467]
[1724436614474,0.04622411,148.21,148.18,0.0433467]
[1724436614772,0.05071038,148.21,148.18,0.05002016]
[1724436614965,0.05071038,148.21,148.18,46.70002016]
[1724436616069,0.05071038,148.21,148.19,3.3736]
[1724436616271,0.05071038,148.21,148.18,46.70002016]
[1724436617170,3.3719,148.27,148.18,46.70002016]
[1724436617369,3.3719,148.27,148.22,46.65]
[1724436617975,5.4098,148.29,148.22,46.65]
[1724436618367,0.04271995,148.27,148.24,0.04640102]
[1724436618973,0.04271995,148.27,148.25,46.65]
[1724436619574,0.04271995,148.27,148.24,3.41880102]
[1724436619575,0.04271995,148.27,148.24,0.04640102]
[1724436620771,0.04271995,148.27,148.26,46.65]
[1724436621272,3.3707,148.32,148.26,46.65]
[1724436621667,2.8277,148.35,148.26,46.65]
[1724436621868,2.7103,148.36,148.31,46.65]
[1724436622070,2.7103,148.36,148.29,46.65]
[1724436622268,2.7103,148.36,148.31,0.04909822]
[1724436622269,3.3707,148.32,148.31,0.04909822]
[1724436622476,0.04783297,148.34,148.31,0.04909822]
[1724436623974,3.3706,148.33,148.31,0.04909822]
[1724436624175,0.04783297,148.34,148.31,0.04909822]
[1724436624681,3.3707,148.32,148.31,0.04909822]
[1724436625177,3.3715,148.29,148.24,46.65]
[1724436625483,49.3603,148.36,148.24,46.65]
[1724436625878,3.3717,148.28,148.24,46.65]
[1724436626070,49.3603,148.36,148.24,46.65]
[1724436626274,0.04698673,148.31,148.29,0.05131321]
[1724436626479,0.04594423,148.31,148.29,0.05131321]
[1724436627272,3.41694423,148.31,148.29,0.05131321]
[1724436627486,0.04594423,148.31,148.29,0.05131321]
[1724436628279,3.3711,148.3,148.29,0.05131321]
[1724436629880,3.41694423,148.31,148.29,0.05131321]
[1724436630274,0.04594423,148.31,148.29,0.05131321]
[1724436630474,0.04594423,148.31,148.29,46.70131321]
[1724436631184,0.04594423,148.31,148.29,0.05131321]
[1724436631482,3.41694423,148.31,148.29,0.05131321]
[1724436633483,0.04594423,148.31,148.29,0.05131321]
[1724436635089,0.04594423,148.31,148.29,46.70131321]
[1724436635283,2.7049,148.38,148.29,93.35131321]
[1724436635585,6.23872143,148.41,148.34,46.65]
[1724436635884,2.8238,148.41,148.36,46.65]
[1724436636085,3.3689,148.4,148.36,46.65]
[1724436636377,0.05170044,148.39,148.37,0.04574451]
[1724436636785,0.05170044,148.39,148.38,46.65]
[1724436636981,0.05170044,148.39,148.37,0.04574451]
[1724436639385,0.05170044,148.39,148.37,3.41524451]
[1724436639583,0.05170044,148.39,148.37,0.04574451]
[1724436641390,0.05170044,148.39,148.38,46.65]
[1724436641688,73.61,148.52,148.38,46.65]
[1724436641888,2.804,148.48,148.41,46.65]
[1724436642091,6.20179729,148.48,148.41,46.65]
[1724436642382,3.3684,148.42,148.41,46.65]
[1724436642886,0.04649242,148.43,148.41,46.65]
[1724436643087,3.3684,148.42,148.41,46.65]
[1724436643491,0.04649242,148.43,148.41,46.65]
[1724436643882,0.04649242,148.43,148.4,5.43471781]
[1724436644288,3.3684,148.42,148.4,5.43471781]
[1724436644584,3.3684,148.42,148.4,8.57471781]
[1724436645086,0.04649242,148.43,148.41,46.65]
[1724436645492,3.3684,148.42,148.41,46.65]
[1724436645691,3.3684,148.42,148.4,8.57471781]
[1724436645692,0.04649242,148.43,148.4,8.57471781]
[1724436646893,3.3684,148.42,148.4,8.57471781]
[1724436647688,3.41479242,148.43,148.4,8.57471781]
[1724436647891,0.04649242,148.43,148.4,8.57471781]
[1724436648492,3.41479242,148.43,148.4,8.57471781]
[1724436648796,0.04649242,148.43,148.4,11.94351781]
[1724436648997,0.04649242,148.43,148.4,8.57471781]
[1724436649390,0.04649242,148.43,148.41,3.3685]
[1724436649793,0.04649242,148.43,148.42,46.65]
[1724436649991,2.804,148.48,148.42,46.65]
[1724436650195,2.6805,148.51,148.45,46.65]
[1724436650393,6.1082666,148.51,148.44,46.65]
[1724436650589,2.6805,148.51,148.44,46.65]
[1724436651295,0.04756922,148.49,148.46,0.05088269]
[1724436652192,0.04756922,148.49,148.46,46.70088269]
[1724436652400,3.41446922,148.49,148.46,46.70088269]
[1724436652597,0.04756922,148.49,148.46,46.70088269]
[1724436652797,0.04756922,148.49,148.48,46.65]
[1724436652994,6.727,148.64,148.48,46.65]
[1724436653197,5.2298,148.59,148.53,46.65]
[1724436653498,5.2298,148.59,148.54,3.3655]
[1724436653805,8.6431518,148.59,148.54,46.65]
[1724436654005,3.365,148.58,148.54,46.65]
[1724436654304,0.04870719,148.58,148.55,0.04510529]
[1724436655102,3.3652,148.57,148.55,0.04510529]
[1724436655302,0.04870719,148.58,148.55,0.04510529]
[1724436655604,0.04870719,148.58,148.49,46.65]
[1724436655799,5.2298,148.59,148.49,46.65]
[1724436656904,3.3657,148.54,148.53,0.04651192]
[1724436657104,0.04887466,148.55,148.47,46.65]
[1724436657304,3.3666,148.5,148.47,46.65]
[1724436658100,3.41847244,148.5,148.47,46.6981204]
[1724436658295,0.05187244,148.5,148.47,46.6981204]
[1724436658499,0.05187244,148.5,148.47,0.0481204]
[1724436658704,0.05187244,148.5,148.49,46.65]
[1724436659504,5.2298,148.59,148.49,46.65]
[1724436659505,3.366,148.53,148.49,46.65]
[1724436659700,5.2298,148.59,148.52,46.65]
[1724436659910,3.3655,148.55,148.52,46.65]
[1724436660205,3.3655,148.55,148.53,5.38]
[1724436660707,0.04554195,148.55,148.54,46.65]
[1724436661299,3.41104195,148.55,148.54,46.65]
[1724436661799,0.04554195,148.55,148.54,46.65]
[1724436662306,3.365,148.58,148.54,46.65]
[1724436662696,5.99204601,148.59,148.54,46.65]
[1724436663107,5.99204601,148.59,148.53,5.42315483]
[1724436663108,0.04282295,148.58,148.53,5.42315483]
[1724436663908,0.04282295,148.58,148.56,46.65]
[1724436664604,2.6392,148.63,148.56,46.65]
[1724436664807,2.5708,148.64,148.59,46.65]
[1724436665402,3.3636,148.64,148.62,46.65]
[1724436665703,3.41356442,148.64,148.62,46.69635722]
[1724436665900,0.04996442,148.64,148.62,46.69635722]
[1724436668003,26.94,148.72,148.62,46.69635722]
[1724436668306,26.94,148.72,148.67,46.65]
[1724436668505,26.94,148.72,148.66,46.65]
[1724436669105,3.3623,148.7,148.66,46.65]
[1724436669305,3.41347434,148.7,148.68,0.04311164]
[1724436669707,3.3623,148.69,148.68,0.04311164]
[1724436670208,0.05117434,148.7,148.68,0.04311164]
[1724436670209,3.41327434,148.7,148.68,0.04311164]
[1724436670409,0.05117434,148.7,148.68,0.04311164]
[1724436670909,3.3623,148.69,148.68,0.04311164]
[1724436671412,0.05117434,148.7,148.68,0.04311164]
[1724436671600,3.41327434,148.7,148.68,0.04311164]
[1724436672307,0.05117434,148.7,148.68,0.04311164]
[1724436672500,0.05117434,148.7,148.69,46.65]
[1724436672900,11.20704304,148.76,148.69,46.65]
[1724436672901,7.9275,148.76,148.69,46.65]
[1724436673108,7.9275,148.76,148.71,46.65]
[1724436673306,11.2342773,148.76,148.71,46.65]
[1724436673611,11.2342773,148.76,148.72,5.37]
[1724436673612,3.3611,148.75,148.72,5.37]
[1724436674108,3.41060887,148.75,148.72,5.41493187]
[1724436674309,3.41060887,148.75,148.72,8.54493187]
[1724436674505,0.04950887,148.75,148.72,8.54493187]
[1724436674710,0.04950887,148.75,148.74,46.65]
[1724436675008,3.3602,148.79,148.74,46.65]
[1724436675211,8.79547724,148.8,148.77,46.65]
[1724436675405,8.79547724,148.8,148.75,46.65]
[1724436675708,8.79547724,148.8,148.72,55.15]
[1724436675904,8.79547724,148.8,148.75,0.04673405]
[1724436676311,3.3607,148.76,148.75,0.04673405]
[1724436676511,8.79547724,148.8,148.75,0.04673405]
[1724436676712,8.79547724,148.8,148.72,8.5]
[1724436677708,3.3601,148.79,148.75,0.04400154]
[1724436677911,0.04499825,148.77,148.75,0.04400154]
[1724436679416,3.40569825,148.77,148.75,0.04400154]
[1724436679912,3.3607,148.76,148.75,0.04400154]
[1724436680916,3.3607,148.76,148.75,2.45400154]
[1724436681120,0.04499825,148.77,148.75,2.45400154]
[1724436682320,0.04499825,148.77,148.76,46.65]
[1724436682522,5.432,148.8,148.76,46.65]
[1724436682722,5.432,148.8,148.79,46.65]
[1724436683417,3.3597,148.81,148.79,46.65]
[1724436683615,3.3594,148.82,148.79,46.65]
[1724436684322,3.3592,148.83,148.79,46.65]
[1724436685219,8.0139,148.89,148.81,46.65]
[1724436685525,11.31520882,148.89,148.84,0.04863046]
[1724436685921,11.31520882,148.89,148.85,5.37]
[1724436686817,8.0139,148.89,148.85,5.37]
[1724436687617,3.3585,148.86,148.85,5.37]
[1724436687820,8.0139,148.89,148.85,5.37]
[1724436688225,8.0139,148.89,148.85,52.02]
[1724436688626,3.3583,148.87,148.85,52.02]
[1724436688827,8.0139,148.89,148.85,5.37]
[1724436689226,3.3584,148.87,148.85,5.37]
[1724436689528,8.0139,148.89,148.85,5.37]
[1724436689928,3.3582,148.88,148.85,5.37]
[1724436690117,3.3582,148.88,148.85,8.5]
[1724436690318,5.1965,148.94,148.85,8.5]
[1724436690319,3.3577,148.9,148.85,11.8586]
[1724436690923,30.2372,148.92,148.89,46.65]
[1724436691131,3.3572,148.92,148.89,46.65]
[1724436691318,3.3571,148.92,148.89,46.65]
[1724436691621,2.7409,148.93,148.89,46.69366461]
[1724436692218,2.7409,148.93,148.89,0.04366461]
[1724436692822,3.3575,148.91,148.89,0.04366461]
[1724436693021,2.6141,148.99,148.89,46.69366461]
[1724436693223,2.6141,148.99,148.93,0.05107828]
[1724436693224,5.3675,148.98,148.93,0.05107828]
[1724436693426,3.3567,148.94,148.93,0.05107828]
[1724436694127,3.3578,148.9,148.87,46.65]
[1724436694330,46.65,148.97,148.85,55.15]
[1724436694529,46.65,148.97,148.85,58.5086]
[1724436694833,46.65,148.97,148.85,55.15]
[1724436695037,46.65,148.97,148.85,8.5]
[1724436695220,46.65,148.97,148.74,3.43048297]
[1724436695221,46.65,148.9,148.74,3.43048297]
[1724436695524,46.65,148.9,148.77,46.65]
[1724436695525,46.65,148.88,148.77,46.65]
[1724436695728,0.04794795,148.84,148.81,0.05032923]
[1724436695928,0.04794795,148.84,148.81,46.70032923]
[1724436696421,0.04794795,148.84,148.83,46.65]
[1724436697229,0.04794795,148.84,148.82,4.05]
[1724436698226,0.04794795,148.84,148.82,9.42]
[1724436699025,3.3591,148.83,148.82,9.42]
[1724436699227,3.3591,148.83,148.82,5.193]
[1724436699519,3.3591,148.83,148.82,0.966]
[1724436699724,3.3594,148.82,148.81,0.05032923]
[1724436700326,46.69794795,148.84,148.73,47.1103]
[1724436700327,3.3603,148.78,148.73,47.1103]
[1724436700526,3.3603,148.78,148.73,46.65]
[1724436700835,3.3603,148.78,148.71,50.0116]
[1724436701034,3.3605,148.77,148.71,46.65]
[1724436701233,3.40411312,148.77,148.75,2.45268068]
[1724436701526,0.04361312,148.77,148.75,7.82268068]
[1724436702328,3.3607,148.76,148.75,7.82268068]
[1724436702932,3.3607,148.76,148.75,9.06268068]
[1724436704333,0.04361312,148.77,148.75,9.06268068]
[1724436705538,3.3607,148.76,148.75,9.06268068]
[1724436707130,46.69361312,148.77,148.65,2.6747]
[1724436707333,2.6248,148.79,148.64,46.65]
[1724436707334,46.65,148.75,148.64,46.65]
[1724436707940,46.65,148.75,148.62,49.2442]
[1724436707941,46.65,148.73,148.62,49.2442]
[1724436708240,46.65,148.7,148.6,2.6859]
[1724436708637,46.65,148.7,148.57,46.65]
[1724436708638,50.00272056,148.7,148.57,46.65]
[1724436708846,3.3642,148.61,148.6,5.38]
[1724436710636,3.41115532,148.62,148.6,5.38]
[1724436710940,0.00542062,148.62,148.6,5.38]
[1724436711243,3.3641,148.61,148.6,5.38]
[1724436711837,0.00542062,148.62,148.6,5.38]
[1724436712240,3.3641,148.61,148.6,5.38]
[1724436714243,3.3643,148.6,148.59,0.04843865]
[1724436714942,46.65,148.61,148.48,46.65]
[1724436715139,46.65,148.58,148.45,5.3379]
[1724436715341,3.3663,148.52,148.45,8.7054]
[1724436715939,2.8092,148.57,148.45,14.0854]
[1724436715940,3.3665,148.51,148.45,14.0854]
[1724436716242,0.04432252,148.5,148.47,0.04738314]
[1724436716447,3.41102252,148.5,148.47,0.04738314]
[1724436716839,0.04432252,148.5,148.47,0.04738314]
[1724436717646,3.367,148.49,148.47,0.04738314]
[1724436718043,3.367,148.48,148.47,0.04738314]
[1724436720537,0.04432252,148.5,148.47,0.04738314]
[1724436722850,0.04432252,148.5,148.47,46.69738314]
[1724436723045,5.4419,148.57,148.47,46.69738314]
[1724436723046,3.3659,148.54,148.49,46.65]
[1724436723347,3.30820137,148.55,148.49,46.65]
[1724436723544,2.8092,148.57,148.49,46.65]
[1724436724048,0.04385563,148.54,148.52,0.04877366]
[1724436724945,2.786,148.63,148.52,46.69877366]
[1724436725150,2.786,148.63,148.48,5.4249]